Cogmind - Beta 13 @@@ ROGUE MODE // 2024.04.06 @ 12:02:19 Player: TechnicalFowl Result: Destroyed self with Mini Grenade Launcher Performance ------------- Evolutions (0) 0 Regions Visited (2) 400 Robots Destroyed (13) 65 Value Destroyed (378) 378 Prototype IDs (0) 0 Alien Tech Used (0) 0 Bonus (0) 0 TOTAL SCORE: 843 Bonus ------- None Cogmind --------- Core Integrity 0/250 Matter 262/300 Energy 100/100 System Corruption 9% Temperature Cool (10) Movement Core (700) Ox13 Location -10/Mines Parts ------- > --- POWER (1) -------- (None) > --- PROPULSION (2) --- (None) > --- UTILITY (2) ------ High-capacity Storage Unit > --- WEAPON (2) ------- Mini Grenade Launcher > --- INVENTORY (20) --- Light Deuterium Engine Seismic Detector Peak State ------------ > --- POWER ------------ Ion Engine > --- PROPULSION ------- Light Treads Light Treads > --- UTILITY ---------- High-capacity Storage Unit Light Armor Plating > --- WEAPON ----------- Assault Rifle Light Assault Rifle > --- INVENTORY -------- Ion Engine Light Treads Medium Storage Unit Light Assault Rifle [Rating: 7] Favorites ----------- Power Ion Engine Engine Ion Engine Propulsion Light Treads Treads Light Treads Utility Small Storage Unit Storage Small Storage Unit Protection Light Armor Plating Weapon Assault Rifle Ballistic Gun Assault Rifle Launcher Mini Grenade Launcher Build | -11 -10 -10 ------- Run | Yrd Mat Min Slots Evolved . | . . . Power . | . . . Propulsion . | . . . Utility . | . . . Weapon . | . . . Parts Attached 18 | 6 5 7 Power 4 | 1 1 2 Engine 4 | 1 1 2 Core . | . . . Reactor . | . . . Propulsion 3 | 2 . 1 Treads 3 | 2 . 1 Leg . | . . . Wheel . | . . . Hover . | . . . Flight . | . . . Utility 4 | 1 1 2 Device . | . . . Storage 3 | 1 1 1 Processor . | . . . Hackware . | . . . Protection 1 | . . 1 Artifact . | . . . Weapon 7 | 2 3 2 Energy Gun . | . . . Energy Cannon . | . . . Ballistic Gun 6 | 2 3 1 Ballistic Cannon . | . . . Launcher 1 | . . 1 Special Weapon . | . . . Impact Weapon . | . . . Slashing Weapon . | . . . Piercing Weapon . | . . . Special Melee Weapon . | . . . Unidentified Prototypes . | . . . Parts Lost 10 | . 1 9 Power 2 | . . 2 Propulsion 3 | . . 3 Utility 1 | . . 1 Weapon 4 | . 1 3 Highest Loss Streak 9 | . 1 9 To Critical Strikes . | . . . Average Slot Usage (%) 73 | . 85 61 Engine 12 | . 14 11 Treads 21 | . 28 14 Storage 14 | . 14 14 Protection 2 | . . 4 Ballistic Gun 22 | . 28 15 Naked Turns . | . . . Heaviest Build 51 | 14 18 51 Greatest Support 40 | 40 40 40 Greatest Overweight (x) 14 | . . 14 Average Overweight (x) 1 | . . 3 Largest Inventory Capacity 20 | 8 10 20 Average Capacity 12 | 7 8 17 Most Carried 5 | 5 3 5 Average Carried 2 | 2 1 2 Final Capacity 20 | 8 10 20 Final Carried 2 | 2 2 2 Class Distribution -------------------- 100% | Mutant Dominant Class ---------------- Mutant | -10/Materials Mutant | -10/Mines Resources | -11 -10 -10 ----------- Run | Yrd Mat Min Matter Collected 554 | 214 222 118 Remotely . | . . . Salvage Created 465 | . 307 158 Parts 20 | . 12 8 Haulers Intercepted . | . . . Recyclers Shooed 2 | . 1 1 Parts Field Recycled . | . . . Retrieved Matter . | . . . Parts Self-Destructed . | . . . Prevented . | . . . Kills | -11 -10 -10 ------- Run | Yrd Mat Min Combat Hostiles Destroyed 13 | . 6 7 Guns 11 | . 6 5 AOE 2 | . . 2 Classes Destroyed 5 | . 2 3 Recycler 2 | . 1 1 Swarmer 3 | . . 3 Grunt 6 | . 6 . Demolisher 2 | . . 2 Assembled 2 | . . 2 Best Kill Streak 4 | . 4 3 Combat Bots Only 4 | . 4 3 Max Kills in Single Turn 1 | . 1 1 Gunslinging . | . . . Exploded 1 | . . 1 Melee . | . . . Uniques/NPCs Destroyed . | . . . Combat | -11 -10 -10 -------- Run | Yrd Mat Min Hostile Shots Fired 91 | . 53 38 Missed 29 | . 17 12 Damage Taken 1383 | . 452 931 Core 264 | . 60 204 Absorbed by Shields . | . . . Core Remaining (%) 100 | 100 . . Volleys Fired 50 | . 28 22 Largest 2 | . 2 2 Hottest 40 | . 40 40 Shots Fired 94 | . 55 39 Gun 91 | . 55 36 Cannon . | . . . Launcher 3 | . . 3 Special . | . . . Kinetic 91 | . 55 36 Thermal . | . . . Explosive 3 | . . 3 Electromagnetic . | . . . Robot Hit Streak 13 | . 13 9 Robot Miss Streak 4 | . 2 4 Penetration Max . | . . . Secondary Targets 2 | . 2 . Max Gunslinging Chain 1 | . 1 . Shots Hit Robots 66 | . 42 24 Core Hits 28 | . 15 13 Critical Kills . | . . . Critical Parts Destroyed . | . . . Critical Strikes . | . . . Melee Attacks . | . . . Impact . | . . . Slashing . | . . . Piercing . | . . . Sneak Attacks . | . . . Combat Hostiles . | . . . Follow-up Attacks . | . . . Damage Inflicted 863 | . 510 353 Guns 738 | . 510 228 Cannons . | . . . Explosions 125 | . . 125 Melee . | . . . Ramming . | . . . Kinetic 738 | . 510 228 Thermal . | . . . Explosive 125 | . . 125 Electromagnetic . | . . . Impact . | . . . Slashing . | . . . Piercing . | . . . Highest Corruption 9 | . . 9 Average Corruption 9 | . . 9 Corruption Purged . | . . . Corruption Blocked . | . . . Effects 5 | . . 5 Message Errors 1 | . . 1 Matter Fused 1 | . . 1 Heat Flow Errors 1 | . . 1 Energy Discharges 1 | . . 1 Data Loss (minor) 1 | . . 1 Overload Shots . | . . . Overflow Damage . | . . . Projectiles . | . . . Explosions . | . . . Melee . | . . . Knockbacks . | . . . Impact . | . . . Kinetic . | . . . Secondary . | . . . Self-Inflicted Damage 74 | . . 74 Shots 3 | . . 3 Rammed . | . . . Targets Rammed . | . . . Kicked . | . . . Crushed . | . . . Highest Temperature 169 | . 36 169 Average Temperature 22 | . 13 34 Received Heat Transfer 376 | . 276 100 Siege Activations . | . . . Robots Corrupted . | . . . Combat Hostiles . | . . . Parts Fried . | . . . Impact Corruptions . | . . . Robots Melted . | . . . Combat Hostiles . | . . . Parts Melted . | . . . Heat Transferred . | . . . Parts Sabotaged . | . . . Parts Stolen . | . . . Parts Stripped . | . . . Power Chain Reactions . | . . . Alert | -11 -10 -10 ------- Run | Yrd Mat Min Peak Influence 170 | . 170 75 Initial . | . . . Average 76 | . 112 50 Maximum Alert Level . | . . . Low Security (%) 100 | 100 100 100 Level 1 . | . . . Level 2 . | . . . Level 3 . | . . . Level 4 . | . . . Level 5 . | . . . High Security . | . . . Max Security . | . . . Squads Dispatched 1 | . 1 . Investigation 1 | . 1 . Extermination . | . . . Reinforcement . | . . . Assault . | . . . Garrison . | . . . Intercept . | . . . Searches Triggered . | . . . Construction Impeded . | . . . Haulers Reinforced . | . . . Active Scanning Responses . | . . . Cargo Convoy Interrupts . | . . . Stealth | -11 -10 -10 --------- Run | Yrd Mat Min Distress Signals 1 | . 1 . Communications Jammed . | . . . Distress Signals . | . . . Times Spotted 14 | . 7 7 Peak Tracking Total 4 | . 4 3 Tactical Retreats 1 | . . 1 Traps | -11 -10 -10 ------- Run | Yrd Mat Min Traps Triggered . | . . . Indirectly . | . . . Trap Hack Attempts . | . . . Triggered . | . . . Disarmed . | . . . Reprogrammed . | . . . Reused . | . . . Traps Extracted . | . . . Installed . | . . . Triggered . | . . . Machines | -11 -10 -10 ---------- Run | Yrd Mat Min Machines Disabled . | . . . Max in Single Turn . | . . . Machines Repaired . | . . . Machines Dismantled . | . . . Machines Sabotaged . | . . . Overloaded Fab Kills . | . . . Hacking | -11 -10 -10 --------- Run | Yrd Mat Min Machines Accessed 5 | . 5 . Terminals 4 | . 4 . Fabricators . | . . . Repair Stations . | . . . Recycling Units 1 | . 1 . Scanalyzers . | . . . Garrison Access . | . . . Total Hacks 12 | . 12 . Successful 6 | . 6 . Failed 6 | . 6 . Catastrophic 2 | . 2 . Database Lockouts . | . . . Manual 3 | . 3 . Terminals 10 | . 10 . Fabricators . | . . . Repair Stations . | . . . Recycling Units 2 | . 2 . Scanalyzers . | . . . Garrison Access . | . . . Terminal Hacks 5 | . 5 . Record 1 | . 1 . Branch Access Points 1 | . 1 . Alert Level 1 | . 1 . Locate Traps 1 | . 1 . Zone Layout 1 | . 1 . Fabricator Hacks . | . . . Repair Station Hacks . | . . . Recycling Unit Hacks 1 | . 1 . Retrieve Components 1 | . 1 . Scanalyzer . | . . . Garrison Access Hacks . | . . . Unauthorized Hacks . | . . . Terminals . | . . . Fabricators . | . . . Repair Stations . | . . . Recycling Units . | . . . Scanalyzers . | . . . Garrison Access . | . . . Data Cores Recovered . | . . . Used . | . . . Hacking Detections 3 | . 3 . Full Trace Events 1 | . 1 . Feedback Events . | . . . Feedback Blocked . | . . . Robot Schematics Acquired . | . . . Robots Built . | . . . Authchips . | . . . Time . | . . . Total Robot Build Rating . | . . . Part Schematics Acquired . | . . . Parts Built . | . . . Authchips . | . . . Time . | . . . Total Part Build Rating . | . . . Parts Repaired . | . . . Time . | . . . Parts Recycled . | . . . Recycled Matter . | . . . Retrieved Matter . | . . . Retrieved Components . | . . . Parts Scanalyzed . | . . . Part Schematics Acquired . | . . . Parts Damaged . | . . . Bothacking | -11 -10 -10 ------------ Run | Yrd Mat Min Used RIF Installer . | . . . Robots Hacked . | . . . Non-combat . | . . . Combat . | . . . Robot Hacks Applied . | . . . Relay Couplers Released . | . . . Fabnet Peak Effective % . | . . . Robots Rewired . | . . . Allies Hacked . | . . . Hacks Repelled . | . . . Allies | -11 -10 -10 -------- Run | Yrd Mat Min Total Allies . | . . . Largest Group . | . . . Highest-Rated Group . | . . . Highest-Rated Ally . | . . . Total Orders . | . . . Ally Attacks . | . . . Total Damage . | . . . Kills . | . . . Allies Corrupted . | . . . Allies Melted . | . . . Intel | -11 -10 -10 ------- Run | Yrd Mat Min Robot Analysis Total . | . . . Derelict Logs Recovered . | . . . Drone Launches . | . . . Drone Recoveries . | . . . Exploration | -11 -10 -10 ------------- Run | Yrd Mat Min Turns Passed 952 | 64 449 439 Spaces Moved 382 | 38 224 120 Core 34 | 9 . 25 Treads 348 | 29 224 95 Legs . | . . . Wheels . | . . . Hover . | . . . Flight . | . . . Fastest Speed 50 | 50 160 160 Average Speed 203 | 133 160 307 Slowest Speed 750 | 160 160 750 Overloaded Moves . | . . . Propulsion Burnouts . | . . . Robots Hopped . | . . . Cave-ins Triggered 1 | . . 1 Exploration Rate (%) 31 | 3 47 43 Regions Visited 2 Branch Regions 1 Pre-discovered Areas . | . . . Known Exits Taken 1 | . 1 . Unknown Exits Taken 1 | 1 . . Scrap Searched 1 | . . 1 Spaces Dug . | . . . Terrain Destroyed 28 | . . 28 Melee . | . . . Projectile . | . . . AOE 28 | . . 28 Terrain Rammed . | . . . Walls Destroyed . | . . . Machines Disabled . | . . . Actions | -11 -10 -10 --------- Run | Yrd Mat Min Total 469 | 51 261 157 Wait . | . . . Move 380 | 37 223 120 Hop . | . . . Pick Up 17 | 8 3 6 Fast Attach . | . . . Attach 14 | 6 2 6 Detach 1 | . . 1 Swap 4 | . 3 1 Drop 3 | . 2 1 Fire 50 | . 28 22 Melee . | . . . Ram . | . . . Kick . | . . . Crush . | . . . Escape Stasis . | . . . Rewire . | . . . Trap . | . . . Miscellaneous . | . . . Route ------- -11/Scrapyard -10/Materials (discovered 2 exits: [*Mat] / *Min) -10/Mines History --------- Turn | Location | Event 19 | -11/Scrapyard | Discovered new exit (range 16) 65 | -11/Scrapyard | Entered Materials 200 | -10/Materials | Identified exit to Mines 300 | -10/Materials | Build established: Mutant 379 | -10/Materials | Discovered new exit (range 10) 514 | -10/Materials | Entered Mines 547 | -10/Mines | Assembled infested the area 740 | -10/Mines | Core integrity fell below 50% 762 | -10/Mines | Crushed by falling debris 793 | -10/Mines | Lost 9 parts (2p3n1u3w) 947 | -10/Mines | Core integrity fell below 20% 953 | -10/Mines | Destroyed self with Mini Grenade Launcher Last Messages --------------- 00928_ K-01 Serf collects debris. 00930_ U-05 Engineer lays Concrete. 00930_ U-05 Engineer builds a Wall. 00931_ U-05 Engineer lays Concrete. 00931_ K-01 Serf collects debris. 00932_ U-05 Engineer lays Concrete. 00935_ as-61169 destroyed. 00935_ K-01 Serf collects debris. 00935_ U-05 Engineer lays Concrete. 00936_ U-05 Engineer builds a Wall. 00936_ U-05 Engineer lays Concrete. 00939_ K-01 Serf collects debris. 00939_ U-05 Engineer lays Concrete. 00940_ System corrupted: Component data lost. 00940_ U-05 Engineer lays Concrete. 00941_ K-01 Serf collects debris. 00943_ U-05 Engineer lays Concrete. 00944_ Acquired 2 matter. 00948_ K-01 Serf collects debris. 00953_ as-02438 destroyed. Map ----- +----------------------------------------------------+ | ????? ### # #????### ####?????? | | ???? # ###### # ####??? | | ????? # " # ##?? | | ????????? # ## ### #?? | | ?????????????# # % =#?#### #### | | ?????????????# ## # # #???#####% # | | ?????????????# ## ## ####?????# # # | | ?????????????#### # # #????????# ## # | | ??????#??????# # ##????????## ### ## | | ????? ?????# # ##??????????# # # | | ???? ##??### ##???????????# # # # | | ??? #### ##????????????#### # | | ???????# ##????????????## # | | ????????# #????????????# # | | ????????## #????????????## # | | ????????## ###???????????#### | | ????????# ##???????????# ## | | ????????# #???????????## %#### | | ????????# ##????????????# ! | | ????????# ### #?????????????## !% | | ????????## #??### #??????????????######## | | ?????????# #?????#k%##### #???###??# | | ?????????# ####### #?????????# | | ?????????# ###### #??????????# | | ?????????# ##???????????????????# | | ?????????###### @ #???????????????????# | | ??????????????# ??????????????????# | | ?????????????# ??????????????????# | | ?????????????## #????????????????? | | ??????????????## #????????????????? | | ???????????????# % ????????????????" | | ???????????????# % != ###???????????????" | | ??????????????? % =%!|#?????????????????" | | ??????????????? % % !*!%#?????????????????? | | ?????????????? % %!! ?????????????????? | | ?????????????? == ????????????????? | | ?????????????? ######????????????????? | | ????????????? ##?????????????????????? | | ????????????? #???????????????????????? | | ?????????????? #????????????????????????? | | ????????????????#?????????????????????????? | | ??????????????????????????????????????????? | | ??????????????????????????????????????????? | | ??????????????????????????????????????????? | | ??????????????????????????????????????????? | | ??????????????????????????????????????????? | | ??????????????????????????????????????????? | | ??????????????????????????????????????????? | | ??????????????????????????????????????????? | | ??????????????????????????????????????????? | +----------------------------------------------------+ Best States ------------- Heat Dissipation 25 Energy Generation 14 Energy Capacity 250 Matter Stores 300 Matter Capacity 300 Sight Range 16 Terrain Scan Density 10 Armor Coverage 150 Evasion (%) 50 Recoil Reduction 2 Item Schematics ----------------- None Robot Schematics ------------------ None Fabricated ------------ Nothing Alien Tech Used ----------------- None Achievements -------------- None Challenges ------------ None Game ------ Seed LargeMyomerBlaster Manual? 0 Play Time 00:10:00 Cumulative 5.0 hours Start 2024.04.06 @ 11:55:09 End 2024.04.06 @ 12:02:19 Sessions 1 Manual Loads 0 Difficulty Rogue Special Mode None Game No. 8 Rogue 8 Adventurer 0 Explorer 0 Win Type - Total 0 Types 0/0/0/0/0/0/0/0/0 Lore% 5 Gallery% 14 Achievement% 15 Wizard Run 0 Options --------- Layout 1 ASCII 0 Keyboard 0 Movement Mouse Keybinds 0 Fullscreen 0 Font 28/SmallcapsGlow Map View 59x39 Zoom Use 0% Tactical HUD 1 Map Filters NONE Filters NONE Steam 1 RUN: afd0f105-472a-4dea-a9b2-faf27774b037